fUSD/lending_fUSD_20250107
["ID","MTS","AMOUNT","RATE_DAILY","PERIOD"]
[347934888,1736223039473,-502.87905813,0.00011259,2]
[347934889,1736223039483,-500.0,0.00011259,2]
[347934890,1736223039492,-500.0,0.00011259,2]
[347934891,1736223039501,-500.0,0.00011259,2]
[347934892,1736223039510,-500.0,0.00011259,2]
[347934893,1736223039519,-502.87979702,0.00011259,2]
[347934894,1736223039528,-508.05,0.00011259,2]
[347934895,1736223039538,-508.08306301,0.00011259,2]
[347934896,1736223039547,-503.65422763,0.00011259,2]
[347934897,1736223039557,-500.0,0.00011259,2]
[347934898,1736223039565,-500.0,0.00011259,2]
[347934899,1736223039575,-503.09660193,0.00011259,2]
[347934901,1736223039584,-500.0,0.00011259,2]
[347934902,1736223039593,-500.0,0.00011259,2]
[347934903,1736223039603,-505.50333607,0.00011259,2]
[347934904,1736223039613,-500.0,0.00011259,2]
[347934905,1736223039623,-504.30012565,0.00011259,2]
[347934906,1736223039632,-500.0,0.00011259,2]
[347934907,1736223039641,-500.0,0.00011259,2]
[347934908,1736223039651,-500.0,0.00011259,2]
[347934909,1736223039660,-503.44988082,0.00011259,2]
[347934910,1736223039669,-505.69075729,0.00011259,2]
[347934911,1736223039679,-500.0,0.00011259,2]
[347934912,1736223039688,-500.0,0.00011259,2]
[347934913,1736223039698,-500.0,0.00011259,2]
[347934914,1736223039708,-500.0,0.00011259,2]
[347934915,1736223039717,-501.10658168,0.00011259,2]
[347934916,1736223039726,-500.0,0.00011259,2]
[347934917,1736223039735,-500.0,0.00011259,2]
[347934918,1736223039744,-501.93483655,0.00011259,2]
[347934919,1736223039754,-500.0,0.00011259,2]
[347934920,1736223039764,-500.0,0.00011259,2]
[347934921,1736223039773,-500.0,0.00011259,2]
[347934922,1736223039782,-509.50758145,0.00011259,2]
[347934923,1736223039791,-500.0,0.00011259,2]
[347934924,1736223039800,-500.0,0.00011259,2]
[347934925,1736223039810,-502.5475222,0.00011259,2]
[347934926,1736223039819,-512.96877908,0.00011259,2]
[347934927,1736223039828,-500.0,0.00011259,2]
[347934928,1736223039837,-505.27019192,0.00011259,2]
[347934929,1736223039846,-500.0,0.00011259,2]
[347934930,1736223039854,-500.0,0.00011259,2]
[347934931,1736223039865,-500.0,0.00011259,2]
[347934932,1736223039874,-500.0,0.00011259,2]
[347934933,1736223039883,-500.0,0.00011259,2]
[347934934,1736223039895,-500.32331135,0.00011259,2]
[347934935,1736223039905,-507.55310301,0.00011259,2]
[347934936,1736223039914,-500.0,0.00011259,2]
[347934937,1736223039924,-501.65682955,0.00011259,2]
[347934938,1736223039934,-500.0,0.00011259,2]
[347934939,1736223039944,-501.52645156,0.00011259,2]
[347934940,1736223039953,-506.37653125,0.00011259,2]
[347934941,1736223039963,-500.0,0.00011259,2]
[347934942,1736223039972,-500.63811975,0.00011259,2]
[347934943,1736223039982,-502.45449549,0.00011259,2]
[347934944,1736223039990,-500.0,0.00011259,2]
[347934945,1736223039999,-500.0,0.00011259,2]
[347934946,1736223040009,-504.50814447,0.00011259,2]
[347934947,1736223040018,-503.61264373,0.00011259,2]
[347934948,1736223040027,-500.0,0.00011259,2]
[347934949,1736223040036,-500.0,0.00011259,2]
[347934950,1736223040045,-500.0,0.00011259,2]
[347934951,1736223040055,-502.29916908,0.00011259,2]
[347934952,1736223040064,-500.0,0.00011259,2]
[347934953,1736223040073,-500.0,0.00011259,2]
[347934954,1736223040082,-500.0,0.00011259,2]
[347934955,1736223040091,-578.34655297,0.00011259,2]
[347934956,1736223040100,-500.0,0.00011259,2]
[347934957,1736223040110,-500.0,0.00011259,2]
[347934958,1736223040119,-500.0,0.00011259,2]
[347934959,1736223040128,-501.76550144,0.00011259,2]
[347934960,1736223040137,-510.64301296,0.00011259,2]
[347934961,1736223040146,-500.0,0.00011259,2]
[347934962,1736223040155,-508.92963313,0.00011259,2]
[347934963,1736223040163,-312.49422618,0.00011259,2]
[347934964,1736223040172,-509.03657847,0.00011259,2]
[347934965,1736223040182,-503.76407799,0.00011259,2]
[347934966,1736223040192,-505.3698599,0.00011259,2]
[347934967,1736223040201,-500.0,0.00011259,2]
[347934968,1736223040209,-500.0,0.00011259,2]
[347934969,1736223040218,-500.0,0.00011259,2]
[347934970,1736223040227,-500.0,0.00011259,2]
[347934971,1736223040236,-504.76049383,0.00011259,2]
[347934972,1736223040245,-500.0,0.00011259,2]
[347934973,1736223040255,-500.0,0.00011259,2]
[347934974,1736223040263,-500.0,0.00011259,2]
[347934975,1736223040272,-501.50915046,0.00011259,2]
[347934976,1736223040282,-500.0,0.00011259,2]
[347934977,1736223040291,-500.0,0.00011259,2]
[347934978,1736223040300,-598.95220866,0.00011259,2]
[347934979,1736223040308,-500.0,0.00011259,2]
[347934980,1736223040317,-502.416288,0.00011259,2]
[347934981,1736223040326,-500.0,0.00011259,2]
[347934982,1736223040335,-500.0,0.00011259,2]
[347934983,1736223040344,-508.92731494,0.00011259,2]
[347934984,1736223040353,-505.05392241,0.00011259,2]
[347934985,1736223040363,-564.9337318,0.00011259,2]
[347934986,1736223040372,-506.97716464,0.00011259,2]
[347934987,1736223040380,-505.34606641,0.00011259,2]
[347934988,1736223040389,-500.0,0.00011259,2]
[347934989,1736223040397,-649.51585844,0.00011259,2]
[347934990,1736223040407,-506.86144943,0.00011259,2]
[347934991,1736223040416,-500.0,0.00011259,2]
[347934992,1736223040425,-503.83443159,0.00011259,2]
[347934993,1736223040433,-251.10738911,0.00011259,2]
[347934994,1736223040442,-509.49366118,0.00011259,2]
[347934995,1736223040452,-506.0933528,0.00011259,2]
[347934996,1736223040461,-500.0,0.00011259,2]
[347934997,1736223040470,-502.66506774,0.00011259,2]
[347934998,1736223040478,-508.3706551,0.00011259,2]
[347934999,1736223040487,-500.0,0.00011259,2]
[347935000,1736223040496,-641.27841707,0.00011259,2]
[347935001,1736223040505,-503.79856646,0.00011259,2]
[347935002,1736223040513,-507.38349409,0.00011259,2]
[347935003,1736223040522,-500.0,0.00011259,2]
[347935004,1736223040531,-508.27428919,0.00011259,2]
[347935005,1736223040539,-500.0,0.00011259,2]
[347935006,1736223040548,-503.76210988,0.00011259,2]
[347935007,1736223040557,-601.06873403,0.00011259,2]
[347935008,1736223040565,-283.03189573,0.00011259,2]
[347935009,1736223040574,-500.0,0.00011259,2]
[347935010,1736223040583,-500.0,0.00011259,2]
[347935011,1736223040592,-501.42547272,0.00011259,2]
[347935012,1736223040602,-500.0,0.00011259,2]
[347935013,1736223040611,-509.27781391,0.00011259,2]
[347935014,1736223040620,-500.0,0.00011259,2]
[347935015,1736223040629,-500.0,0.00011259,2]
[347935016,1736223040638,-1734.68,0.00011259,2]
[347935017,1736223040647,-500.0,0.00011259,2]
[347935018,1736223040655,-500.0,0.00011259,2]
[347935019,1736223040664,-500.0,0.00011259,2]
[347935020,1736223040672,-500.0,0.00011259,2]
[347935021,1736223040681,-500.0,0.00011259,2]
[347935022,1736223040690,-500.0,0.00011259,2]
[347935023,1736223040698,-500.59219103,0.00011259,2]
[347935024,1736223040707,-500.0,0.00011259,2]
[347935025,1736223040716,-507.11225357,0.00011259,2]
[347935026,1736223040725,-500.55623128,0.00011259,2]
[347935027,1736223040734,-514.70006566,0.00011259,2]
[347935028,1736223040743,-500.0,0.00011259,2]
[347935029,1736223040751,-505.72193536,0.00011259,2]
[347935030,1736223040760,-503.79322031,0.00011259,2]
[347935031,1736223040769,-500.0,0.00011259,2]
[347935032,1736223040777,-510.20269529,0.00011259,2]
[347935033,1736223040786,-517.41701585,0.00011259,2]
[347935034,1736223040795,-525.63,0.00011259,2]
[347935035,1736223040805,-505.09699132,0.00011259,2]
[347935036,1736223040814,-500.8613316,0.00011259,2]
[347935037,1736223040823,-514.77083463,0.00011259,2]
[347935038,1736223040831,-500.0,0.00011259,2]
[347935039,1736223040840,-500.0,0.00011259,2]
[347935040,1736223040849,-501.59960339,0.00011259,2]
[347935041,1736223040858,-500.0,0.00011259,2]
[347935042,1736223040867,-502.78857023,0.00011259,2]
[347935043,1736223040876,-500.0,0.00011259,2]
[347935044,1736223040886,-500.0,0.00011259,2]
[347935045,1736223040898,-500.0,0.00011259,2]
[347935046,1736223040906,-509.26747284,0.00011259,2]
[347935047,1736223040915,-500.0,0.00011259,2]
[347935048,1736223040924,-500.0,0.00011259,2]
[347935049,1736223040933,-502.92049932,0.00011259,2]
[347935050,1736223040942,-562.86,0.00011259,2]
[347935051,1736223040951,-520.76349925,0.00011259,2]
[347935052,1736223040960,-507.03786752,0.00011259,2]
[347935053,1736223040969,-511.47918328,0.00011259,2]
[347935054,1736223040978,-500.0,0.00011259,2]
[347935055,1736223040987,-384.21388225,0.00011259,2]
[347935056,1736223041010,-120.86185797,0.00011259,2]
[347935057,1736223041018,-501.67489761,0.00011259,2]
[347935058,1736223041027,-547.73,0.00011259,2]
[347935059,1736223041036,-500.0,0.00011259,2]
[347935060,1736223041045,-513.83561664,0.00011259,2]
[347935061,1736223041053,-509.04147935,0.00011259,2]
[347935062,1736223041062,-500.86965061,0.00011259,2]
[347935063,1736223041071,-500.0,0.00011259,2]
[347935064,1736223041079,-501.09589519,0.00011259,2]
[347935065,1736223041088,-482.75053707,0.00011259,2]
[347935066,1736223041097,-504.03936492,0.00011259,2]
[347935067,1736223041106,-500.0,0.00011259,2]
[347935068,1736223041116,-500.47461672,0.00011259,2]
[347935069,1736223041125,-504.09704547,0.00011259,2]
[347935070,1736223041133,-502.85542759,0.00011259,2]
[347935071,1736223041142,-512.68071007,0.00011259,2]
[347935072,1736223041151,-502.4892401,0.00011259,2]
[347935073,1736223041159,-513.05844112,0.00011259,2]
[347935074,1736223041169,-504.17213032,0.00011259,2]
[347935075,1736223041178,-501.49965716,0.00011259,2]
[347935076,1736223041187,-500.0,0.00011259,2]
[347935077,1736223041196,-500.0,0.00011259,2]
[347935078,1736223041205,-500.0,0.00011259,2]
[347935079,1736223041214,-502.88586655,0.00011259,2]
[347935080,1736223041223,-500.0,0.00011259,2]
[347935081,1736223041232,-508.32434252,0.00011259,2]
[347935082,1736223041241,-500.46931131,0.00011259,2]
[347935083,1736223041250,-500.0,0.00011259,2]
[347935084,1736223041260,-503.54732044,0.00011259,2]
[347935085,1736223041269,-500.0,0.00011259,2]
[347935086,1736223041279,-506.97960261,0.00011259,2]
[347935087,1736223041289,-500.3865788,0.00011259,2]
[347935088,1736223041299,-502.92852689,0.00011259,2]
[347935089,1736223041472,-2848.57,0.00011259,2]
[347935090,1736223041483,-503.1218044,0.00011259,2]
[347935091,1736223041493,-505.39036331,0.00011259,2]
[347935092,1736223041502,-506.31625567,0.00011259,2]
[347935093,1736223041512,-507.48040904,0.00011259,2]
[347935094,1736223041522,-500.0,0.00011259,2]
[347935095,1736223041531,-500.0,0.00011259,2]
[347935096,1736223041540,-504.57955569,0.00011259,2]
[347935097,1736223041550,-508.01167748,0.00011259,2]
[347935098,1736223041559,-500.0,0.00011259,2]
[347935099,1736223041568,-500.0,0.00011259,2]
[347935100,1736223041579,-505.38887546,0.00011259,2]
[347935101,1736223041589,-500.0,0.00011259,2]
[347935102,1736223041600,-500.0,0.00011259,2]
[347935103,1736223041610,-500.0,0.00011259,2]
[347935104,1736223041620,-505.83182817,0.00011259,2]
[347935105,1736223041630,-500.0,0.00011259,2]
[347935106,1736223041639,-500.0,0.00011259,2]
[347935107,1736223041649,-500.0,0.00011259,2]
[347935108,1736223041659,-500.0,0.00011259,2]
[347935109,1736223041669,-500.0,0.00011259,2]
[347935110,1736223041679,-502.32624539,0.00011259,2]
[347935111,1736223041689,-500.0,0.00011259,2]
[347935112,1736223041699,-511.18690002,0.00011259,2]
[347935113,1736223041709,-491.71625107,0.00011259,2]
[347935114,1736223041718,-507.6204458,0.00011259,2]
[347935115,1736223041729,-613.01190715,0.00011259,2]
[347935116,1736223041738,-500.0,0.00011259,2]
[347935117,1736223041747,-503.24728013,0.00011259,2]
[347935118,1736223041759,-500.0,0.00011259,2]
[347935119,1736223041774,-505.97515746,0.00011259,2]
[347935120,1736223041783,-500.0,0.00011259,2]
[347935121,1736223041792,-500.0,0.00011259,2]
[347935122,1736223041801,-500.0,0.00011259,2]
[347935123,1736223041810,-500.47188175,0.00011259,2]
[347935124,1736223041819,-507.64647025,0.00011259,2]
[347935125,1736223041829,-500.0,0.00011259,2]
[347935126,1736223041839,-500.0,0.00011259,2]
[347935127,1736223041847,-501.60598327,0.00011259,2]
[347935128,1736223041856,-501.69880132,0.00011259,2]
[347935129,1736223041865,-500.79562635,0.00011259,2]
[347935130,1736223041874,-500.0,0.00011259,2]
[347935131,1736223041883,-500.0,0.00011259,2]
[347935132,1736223041897,-505.83691093,0.00011259,2]
[347935133,1736223041906,-502.05793923,0.00011259,2]
[347935134,1736223041915,-500.0,0.00011259,2]
[347935135,1736223041924,-500.0,0.00011259,2]
[347935136,1736223041934,-506.43093275,0.00011259,2]
[347935137,1736223041943,-444.68369539,0.00011259,2]
[347935140,1736223041985,-55.31630461,0.00011259,2]
[347935141,1736223041995,-507.27083408,0.00011259,2]
[347935142,1736223042003,-500.0,0.00011259,2]
[347935143,1736223042012,-500.0,0.00011259,2]
[347935144,1736223042022,-36.91995471,0.00011259,2]
[347935145,1736223042033,-463.08004529,0.00011259,2]
[347935146,1736223042043,-500.0,0.00011259,2]
[347935147,1736223042051,-505.17205214,0.00011259,2]
[347935148,1736223042060,-58.89790257,0.00011259,2]
[347935149,1736223042071,-441.10209743,0.00011259,2]
[347935150,1736223042080,-500.0,0.00011259,2]
[347935151,1736223042089,-501.86218479,0.00011259,2]
[347935152,1736223042097,-500.0,0.00011259,2]
[347935153,1736223042106,-500.0,0.00011259,2]
[347935154,1736223042116,-500.0,0.00011259,2]
[347935155,1736223042127,-500.0,0.00011259,2]
[347935156,1736223042140,-503.24016123,0.00011259,2]
[347935157,1736223042150,-508.72034489,0.00011259,2]
[347935158,1736223042160,-500.0,0.00011259,2]
[347935159,1736223042170,-500.0,0.00011259,2]
[347935160,1736223042179,-500.48557283,0.00011259,2]
[347935161,1736223042189,-506.77775131,0.00011259,2]
[347935162,1736223042199,-582.97,0.00011259,2]
[347935163,1736223042208,-500.0,0.00011259,2]
[347935164,1736223042217,-507.62128642,0.00011259,2]
[347935165,1736223042227,-504.42167572,0.00011259,2]
[347935166,1736223042236,-500.0,0.00011259,2]
[347935167,1736223042246,-502.73763418,0.00011259,2]
[347935168,1736223042255,-513.57,0.00011259,2]
[347935169,1736223042264,-625.69563402,0.00011259,2]
[347935170,1736223042275,-502.90360238,0.00011259,2]
[347935171,1736223042285,-619.21238808,0.00011259,2]
[347935172,1736223042295,-500.0,0.00011259,2]
[347935173,1736223042305,-503.1997763,0.00011259,2]
[347935174,1736223042315,-500.0,0.00011259,2]
[347935175,1736223042324,-500.0,0.00011259,2]
[347935176,1736223042334,-502.77770275,0.00011259,2]
[347935177,1736223042344,-625.45,0.00011259,2]
[347935178,1736223042354,-501.55873324,0.00011259,2]
[347935179,1736223042364,-501.0112774,0.00011259,2]
[347935180,1736223042374,-500.0,0.00011259,2]
[347935181,1736223042384,-500.0,0.00011259,2]
[347935182,1736223042394,-500.37202147,0.00011259,2]
[347935183,1736223042403,-500.0,0.00011259,2]
[347935184,1736223042412,-500.0,0.00011259,2]
[347935185,1736223042422,-500.0,0.00011259,2]
[347935186,1736223042432,-500.0,0.00011259,2]
[347935187,1736223042441,-501.47186982,0.00011259,2]
[347935188,1736223042450,-500.0,0.00011259,2]
[347935189,1736223042459,-500.0,0.00011259,2]
[347935190,1736223042469,-500.0,0.00011259,2]
[347935191,1736223042478,-502.79418284,0.00011259,2]
[347935192,1736223042486,-503.26732393,0.00011259,2]
[347935193,1736223042495,-516.6392316,0.00011259,2]
[347935194,1736223042504,-516.80274744,0.00011259,2]
[347935195,1736223042514,-504.20134364,0.00011259,2]
[347935196,1736223042523,-473.81776369,0.00011259,2]
[347935197,1736223042532,-501.78525469,0.00011259,2]
[347935198,1736223042541,-502.31705876,0.00011259,2]
[347935199,1736223042551,-612.29,0.00011259,2]
[347935200,1736223042560,-500.0,0.00011259,2]
[347935201,1736223042568,-500.0,0.00011259,2]
[347935202,1736223042577,-500.67387748,0.00011259,2]
[347935203,1736223042587,-500.0,0.00011259,2]
[347935204,1736223042596,-500.55144083,0.00011259,2]
[347935205,1736223042605,-500.0,0.00011259,2]
[347935206,1736223042616,-500.0,0.00011259,2]
[347935207,1736223042626,-500.0,0.00011259,2]
[347935208,1736223042635,-500.0,0.00011259,2]
[347935209,1736223042644,-502.19923924,0.00011259,2]
[347935210,1736223042653,-502.16388819,0.00011259,2]
[347935211,1736223042663,-625.07,0.00011259,2]
[347935213,1736223042672,-570.91,0.00011259,2]
[347935214,1736223042681,-500.0,0.00011259,2]
[347935215,1736223042691,-500.0,0.00011259,2]
[347935216,1736223042700,-500.0,0.00011259,2]
[347935217,1736223042710,-484.86272144,0.00011259,2]
[347935218,1736223042719,-500.0,0.00011259,2]
[347935219,1736223042729,-587.68,0.00011259,2]
[347935220,1736223042738,-501.61877913,0.00011259,2]
[347935221,1736223042747,-500.0,0.00011259,2]
[347935222,1736223042757,-506.8748005,0.00011259,2]
[347935223,1736223042766,-591.43,0.00011259,2]
[347935224,1736223042775,-500.0,0.00011259,2]
[347935225,1736223042784,-500.0,0.00011259,2]
[347935226,1736223042794,-500.0,0.00011259,2]
[347935228,1736223042803,-502.95648178,0.00011259,2]
[347935230,1736223042812,-500.0,0.00011259,2]
[347935231,1736223042821,-2010.45,0.0001126,2]
[347935232,1736223042831,-2010.45,0.0001126,2]
[347935233,1736223042841,-2010.45,0.0001126,2]
[347935234,1736223042852,-2010.45,0.0001126,2]
[347935235,1736223042861,-2010.45,0.0001126,2]
[347935236,1736223042871,-2010.45,0.0001126,2]
[347935237,1736223042880,-2010.45,0.0001126,2]
[347935238,1736223042891,-2010.45,0.0001126,2]
[347935239,1736223042901,-2010.45,0.0001126,2]
[347935240,1736223042911,-2010.45,0.0001126,2]
[347935242,1736223042920,-2010.45,0.0001126,2]
[347935243,1736223042931,-2010.45,0.0001126,2]
[347935244,1736223042941,-2010.45,0.0001126,2]
[347935245,1736223042951,-2010.45,0.0001126,2]
[347935246,1736223042962,-2010.45,0.0001126,2]
[347935247,1736223042972,-2010.45,0.0001126,2]
[347935248,1736223042981,-2010.45,0.0001126,2]
[347935249,1736223042989,-2010.45,0.0001126,2]
[347935250,1736223042999,-2010.45,0.0001126,2]
[347935251,1736223043008,-2010.45,0.0001126,2]
[347935252,1736223043017,-2010.45,0.0001126,2]
[347935253,1736223043026,-2010.45,0.0001126,2]
[347935254,1736223043035,-2010.45,0.0001126,2]
[347935255,1736223043044,-2010.48709419,0.0001126,2]
[347935256,1736223043054,-150.99,0.00011281,2]
[347935257,1736223043063,-1447.26,0.00011281,2]
[347935258,1736223043071,-9999.99,0.00011281,2]
[347935259,1736223043080,-1000.0,0.00011291,2]
[347935260,1736223043089,-202.0,0.0001131,2]
[347935261,1736223043097,-152.92260958,0.00011329,2]
[347935262,1736223043107,-204.0,0.0001136,2]
[347935263,1736223043117,-152.0,0.00011363,6]
[347935264,1736223043126,-530.74810754,0.000114,2]
[347935265,1736223043134,-205.0,0.0001141,2]
[347935266,1736223043143,-500.0,0.00011411,2]
[347935267,1736223043153,-500.0,0.00011411,2]
[347935268,1736223043162,-500.0,0.00011411,2]
[347935269,1736223043171,-500.0,0.00011411,2]
[347935270,1736223043180,-482.22309019,0.00011411,2]
[347935271,1736223043189,-582.18,0.00011411,2]
[347935272,1736223043198,-500.0,0.00011411,2]
[347935273,1736223043206,-500.0,0.00011411,2]
[347935274,1736223043215,-500.0,0.00011411,2]
[347935275,1736223043224,-500.0,0.00011411,2]
[347935276,1736223043233,-524.91243451,0.00011411,2]
[347935277,1736223043244,-500.0,0.00011411,2]
[347935278,1736223043253,-500.0,0.00011411,2]
[347935279,1736223043263,-500.0,0.00011411,2]
[347935280,1736223043272,-496.83729137,0.00011411,2]
[347935281,1736223043281,-610.87,0.00011411,2]
[347935282,1736223043292,-292.08003825,0.00011411,2]
[347935283,1736223043301,-500.0,0.00011411,2]
[347935284,1736223043310,-379.2692509,0.00011411,2]
[347935285,1736223043320,-517.88493626,0.00011411,2]
[347935286,1736223043329,-500.0,0.00011411,2]
[347935287,1736223043339,-500.0,0.00011411,2]
[347935288,1736223043348,-500.0,0.00011411,2]
[347935289,1736223043357,-500.0,0.00011411,2]
[347935290,1736223043367,-411.86629131,0.00011411,2]
[347935291,1736223043377,-500.0,0.00011411,2]
[347935293,1736223043386,-500.0,0.00011411,2]
[347935295,1736223043395,-500.0,0.00011411,2]
[347935297,1736223043403,-500.0,0.00011411,2]
[347935298,1736223043412,-151.0,0.00011411,2]
[347935299,1736223043421,-500.0,0.00011412,2]
[347935300,1736223043429,-500.0,0.00011412,2]
[347935301,1736223043437,-430.15,0.00011412,2]
[347935302,1736223043446,-500.84,0.00011412,2]
[347935303,1736223043455,-500.0,0.00011412,2]
[347935304,1736223043464,-500.0,0.00011412,2]
[347935305,1736223043473,-500.0,0.00011412,2]
[347935306,1736223043482,-542.57962825,0.00011412,2]
[347935307,1736223043491,-336.16529647,0.00011412,2]
[347935308,1736223043499,-250.99268717,0.00011412,2]
[347935309,1736223043509,-1535.69,0.00011412,2]
[347935310,1736223043518,-500.0,0.00011412,2]
[347935311,1736223043527,-500.0,0.00011412,2]
[347935312,1736223043537,-1422.44,0.00011412,2]
[347935313,1736223043546,-500.0,0.00011412,2]
[347935314,1736223043555,-500.0,0.00011412,2]
[347935315,1736223043564,-500.0,0.00011412,2]
[347935316,1736223043573,-500.0,0.00011412,2]
[347935317,1736223043582,-922.79,0.00011412,2]
[347935318,1736223043591,-583.98,0.00011412,2]
[347935319,1736223043601,-500.0,0.00011412,2]
[347935320,1736223043610,-500.0,0.00011412,2]
[347935321,1736223043620,-500.0,0.00011412,2]
[347935322,1736223043629,-1148.14,0.00011412,2]
[347935323,1736223043638,-858.8,0.00011412,2]
[347935324,1736223043648,-151.0,0.00011413,2]
[347935325,1736223043657,-500.0,0.00011413,2]
[347935326,1736223043666,-500.0,0.00011413,2]
[347935327,1736223043676,-500.0,0.00011413,2]
[347935328,1736223043685,-786.35,0.00011413,2]
[347935329,1736223043695,-500.0,0.00011455,2]
[347935330,1736223043703,-150.5,0.00011461,2]
[347935331,1736223043713,-10565.0,0.00011463,7]
[347935332,1736223043722,-200.0,0.0001147,2]
[347935333,1736223043731,-152.92260958,0.00011471,2]
[347935334,1736223043741,-150.0,0.00011479,2]
[347935335,1736223043750,-1113.03597628,0.00011492,2]
[347935336,1736223043760,-150.0,0.00011495,2]
[347935337,1736223043770,-150.0,0.00011496,2]
[347935338,1736223043780,-500.0,0.00011499,2]
[347935339,1736223043789,-501.00906311,0.00011499,2]
[347935340,1736223043799,-500.0,0.00011499,2]
[347935341,1736223043808,-540.90042286,0.00011499,2]
[347935342,1736223043816,-150.0,0.00011499,2]
[347935343,1736223043826,-150.0,0.00011499,2]
[347935344,1736223043835,-500.0,0.00011499,2]
[347935345,1736223043845,-500.0,0.00011499,2]
[347935346,1736223043855,-500.0,0.00011499,2]
[347935347,1736223043866,-502.69639179,0.00011499,2]
[347935348,1736223043876,-500.0,0.00011499,2]
[347935349,1736223043885,-500.0,0.00011499,2]
[347935350,1736223043898,-500.0,0.00011499,2]
[347935351,1736223043907,-2848.57,0.00011499,2]
[347935352,1736223043917,-2848.57,0.00011499,2]
[347935353,1736223043927,-612.29,0.00011499,2]
[347935354,1736223043937,-612.29,0.00011499,2]
[347935355,1736223043946,-202.0,0.000115,2]
[347935356,1736223043956,-205.0,0.000115,2]
[347935357,1736223043967,-34374.31714282,0.000115,2]
[347935358,1736223044246,-452.54434211,0.00011259,2]
[347935359,1736223044257,-47.45565789,0.00011259,2]
[347935360,1736223044266,-504.22002476,0.00011259,2]
[347935361,1736223044277,-5974.3900402,0.000115,2]
[347935362,1736223044288,-519.07829482,0.000115,2]
[347935363,1736223044300,-21864.56702853,0.000115,2]
[347935364,1736223044312,-12033.76023218,0.000115,2]
[347935365,1736223044323,-22714.42977634,0.000115,2]
[347935366,1736223044335,-4677.82886025,0.000115,2]
[347935367,1736223044346,-757.25070126,0.000115,2]
[347935368,1736223044357,-511.90603702,0.000115,2]
[347935369,1736223044369,-985.75000152,0.000115,2]
[347935370,1736223044386,-509.55688897,0.000115,2]
[347935371,1736223044402,-312.27156458,0.000115,2]
[347935372,1736223044413,-256.0150475,0.000115,2]
[347935373,1736223044540,-1503.26,0.00011138,2]
[347935374,1736223044549,-399.31995286,0.00011259,2]
[347935375,1736223044565,-100.68004714,0.00011259,2]
[347935376,1736223044574,-502.93423761,0.00011259,2]
[347935377,1736223044583,-503.30308342,0.00011259,2]
[347935378,1736223044592,-2859.16450783,0.000115,2]
[347935379,1736223044603,-1693.05149831,0.000115,2]
[347935380,1736223044615,-3795.15533901,0.000115,2]
[347935381,1736223044627,-4927.23480549,0.000115,2]
[347935382,1736223044806,-10937.6,0.000115,2]
[347935383,1736223044819,-607.46602351,0.000115,2]
[347935384,1736223044832,-2749.47812837,0.000115,2]
[347935385,1736223044843,-509.3,0.000115,2]
[347935386,1736223044855,-308.33199996,0.000115,2]
[347935387,1736223044868,-328.7505,0.000115,2]
[347935388,1736223044880,-441.50639637,0.000115,2]
[347935389,1736223044894,-499.38000045,0.000115,2]
[347935390,1736223044951,-504.26321081,0.00011259,2]
[347935391,1736223044961,-4212.58302559,0.000115,2]
[347935394,1736223045838,-150.0,0.00010988,2]
[347935395,1736223045848,-150.0,0.00011009,2]
[347935396,1736223045857,-150.0,0.00011098,2]
[347935397,1736223045867,-500.0,0.00011258,2]
[347935398,1736223045876,-500.0,0.00011259,2]
[347935399,1736223045885,-150.0,0.00011259,2]